[Event "1st Bangalore GM-Open-A 2024"]
[Site "Bangalore"]
[Date "2024.01.21"]
[Round "6.31"]
[White "Patil Harshal"]
[Black "Kushagra Mohan"]
[Result "0-1"]
[ECO "E60"]
[WhiteElo "2182"]
[BlackElo "2374"]
[Annotator "ChessBase"]
[PlyCount "138"]
[EventDate "2024.01.20"]
[EventType "swiss"]
[EventCountry "IND"]
[SourceTitle "playchess.com"]
[Source "ChessBase"]
[SourceQuality "1"]
[TimeControl "5400+30"]

1. d4 {[%emt 0:00:08]} Nf6 {[%emt 0:00:04]} 2. c4 {[%emt 0:00:04]} g6 {[%emt 0:00:47]} 3. g3 {[%emt 0:00:14]} Bg7 {[%emt 0:00:35]} 4. Bg2 {[%emt 0:00:11]} d6 {[%emt 0:00:03]} 5. Nf3 {[%emt 0:00:08]} O-O {[%emt 0:00:03]} 6. O-O {[%emt 0:00:06]} c5 {[%emt 0:00:02]} 7. dxc5 {[%emt 0:04:11]} dxc5 {[%emt 0:00:04]} 8. Qxd8 {[%emt 0:00:25]} Rxd8 {[%emt 0:00:02]} 9. Ne5 {[%emt 0:00:01]} Ne8 {[%emt 0:00:01]} 10. Nd3 {[%emt 0:01:14]} Na6 {[%emt 0:00:01]} 11. Nc3 {[%emt 0:11:23]} Bxc3 {[%emt 0:04:19]} 12. bxc3 {[%emt 0:00:03]} Nd6 {[%emt 0:02:37]} 13. Bg5 {[%emt 0:04:15]} f6 {[%emt 0:03:49]} 14. Bd5+ {[%emt 0:06:54]} Kg7 {[%emt 0:04:30]} 15. Be3 {[%emt 0:00:42]} Nf5 {[%emt 0:09:30]} 16. Bf4 {[%emt 0:07:24]} e6 {[%emt 0:02:09]} 17. Bg2 {[%emt 0:02:22]} g5 {[%emt 0:02:48]} 18. Bc1 {[%emt 0:06:25]} Rb8 {[%emt 0:00:34]} 19. a4 {[%emt 0:10:56]} Nd6 {[%emt 0:00:34]} 20. Be3 {[%emt 0:01:44]} Nxc4 {[%emt 0:03:27]} 21. Bxc5 {[%emt 0:00:22]} Nxc5 {[%emt 0:05:29]} 22. Nxc5 {[%emt 0:00:37]} b6 {[%emt 0:00:05]} 23. Nb3 {[%emt 0:03:28]} a5 {[%emt 0:02:38]} 24. Rfd1 {[%emt 0:04:12]} Bd7 {[%emt 0:10:29]} 25. Nd4 {[%emt 0:00:32]} Rbc8 {[%emt 0:07:01]} 26. Bc6 {[%emt 0:06:48]} Kf7 {[%emt 0:01:24]} 27. Bb5 {[%emt 0:00:02]} Bxb5 {[%emt 0:06:35]} 28. Nxb5 {[%emt 0:03:23]} Ke7 {[%emt 0:01:57]} 29. Rdb1 {[%emt 0:06:03]} Rd2 {[%emt 0:03:00]} 30. Na3 {[%emt 0:01:08]} Nb2 {[%emt 0:10:11]} 31. Nb5 {[%emt 0:00:11]} Rc5 {[%emt 0:04:58]} 32. Kf1 {[%emt 0:01:27]} Nc4 {[%emt 0:00:55]} 33. Na3 {[%emt 0:01:06]} Rd6 {[%emt 0:00:16]} 34. Nxc4 {[%emt 0:00:45]} Rxc4 {[%emt 0:00:01]} 35. Rb3 {[%emt 0:00:01]} Kd7 {[%emt 0:00:18]} 36. Ke1 {[%emt 0:00:47]} Kc7 {[%emt 0:00:05]} 37. f3 {[%emt 0:02:03]} h5 {[%emt 0:00:24]} 38. Kf2 {[%emt 0:02:31]} e5 {[%emt 0:01:47]} 39. Ke3 {[%emt 0:01:20]} g4 {[%emt 0:01:28]} 40. Kf2 {[%emt 0:01:28]} Rdc6 {[%emt 0:02:32]} 41. Raa3 {[%emt 0:00:28]} R6c5 {[%emt 0:01:23]} 42. e4 {[%emt 0:01:59]} Rc6 {[%emt 0:00:58]} 43. fxg4 {[%emt 0:01:04]} hxg4 {[%emt 0:00:30]} 44. Ke3 {[%emt 0:00:00]} Rd6 {[%emt 0:01:29]} 45. Ra2 {[%emt 0:00:24]} Kc6 {[%emt 0:04:24]} 46. Ra1 {[%emt 0:01:19]} Kc7 {[%emt 0:00:00]} 47. Ra2 {[%emt 0:00:14]} Rd1 {[%emt 0:00:00]} 48. Rf2 {[%emt 0:02:36]} Rc6 {[%emt 0:00:00]} 49. Ra3 {[%emt 0:00:39]} Rcd6 {[%emt 0:01:55]} 50. Rb2 {[%emt 0:03:09]} Re1+ {[%emt 0:01:11]} 51. Re2 {[%emt 0:00:02]} Rf1 {[%emt 0:00:07]} 52. Rb2 {[%emt 0:00:17]} Rf3+ {[%emt 0:00:47]} 53. Ke2 {[%emt 0:00:01]} Rc6 {[%emt 0:00:17]} 54. Kd2 {[%emt 0:03:26]} Rf2+ {[%emt 0:03:40]} 55. Kc1 {[%emt 0:00:02]} Rf1+ {[%emt 0:00:01]} 56. Kc2 {[%emt 0:00:20]} Re1 {[%emt 0:00:21]} 57. Kd3 {[%emt 0:00:26]} Rd6+ {[%emt 0:00:01]} 58. Kc4 {[%emt 0:00:01]} Rxe4+ {[%emt 0:00:43]} 59. Kb3 {[%emt 0:00:29]} Re1 {[%emt 0:00:18]} 60. Rf2 {[%emt 0:00:27]} Kd7 {[%emt 0:00:37]} 61. Raa2 {[%emt 0:01:03]} Ke6 {[%emt 0:00:04]} 62. Kc4 {[%emt 0:00:07]} Re3 {[%emt 0:01:49]} 63. Rac2 {[%emt 0:00:25]} f5 {[%emt 0:00:39]} 64. Kb5 {[%emt 0:00:13]} e4 {[%emt 0:00:04]} 65. c4 {[%emt 0:01:11]} Rb3+ {[%emt 0:00:25]} 66. Ka6 {[%emt 0:00:02]} Ke5 {[%emt 0:01:22]} 67. c5 {[%emt 0:00:12]} bxc5+ {[%emt 0:00:14]} 68. Kxa5 {[%emt 0:00:02]} Rc6 {[%emt 0:00:41]} 69. Rc1 {[%emt 0:00:17]} Rc8 {[%emt 0:00:07]} 0-1

[Event "1st Bangalore GM-Open-A 2024"]
[Site "Bangalore"]
[Date "2024.01.21"]
[Round "6.32"]
[White "Gonzales, Jayson"]
[Black "Nayak Rajesh"]
[Result "1/2-1/2"]
[ECO "A36"]
[WhiteElo "2367"]
[BlackElo "2170"]
[Annotator "RC"]
[PlyCount "88"]
[EventDate "2024.01.20"]
[EventType "swiss"]
[EventCountry "IND"]
[SourceTitle "playchess.com"]
[Source "ChessBase"]
[SourceQuality "1"]
[TimeControl "5400+30"]

1. c4 {[%emt 0:00:06]} Nf6 {[%emt 0:01:33]} 2. Nc3 {[%emt 0:00:08]} g6 {[%emt 0:00:37]} 3. g3 {[%emt 0:00:16]} Bg7 {[%emt 0:03:28]} 4. Bg2 {[%emt 0:00:07]} O-O {[%emt 0:00:54]} 5. e4 {[%emt 0:00:24]} c5 {[%emt 0:05:11]} 6. Nge2 {[%emt 0:00:14]} Nc6 {[%emt 0:00:09]} 7. d3 {[%emt 0:00:31]} d6 {[%emt 0:05:00]} 8. O-O {[%emt 0:00:16]} Rb8 {[%emt 0:01:02]} 9. h3 {[%emt 0:00:51]} a6 {[%emt 0:00:14]} 10. a4 {[%emt 0:00:09]} Ne8 {[%emt 0:01:21]} 11. Be3 {[%emt 0:02:41]} Nd4 {[%emt 0:04:52]} 12. Rb1 {[%emt 0:00:52]} Nc7 {[%emt 0:04:02]} 13. b4 {[%emt 0:01:50]} Bd7 {[%emt 0:05:41]} 14. b5 {[%emt 0:06:33]} a5 {[%emt 0:01:20]} 15. f4 {[%emt 0:11:14]} f5 {[%emt 0:00:44]} 16. Qd2 {[%emt 0:01:20]} Nce6 {[%emt 0:00:44]} 17. Kh2 {[%emt 0:01:28]} Nxe2 {[%emt 0:00:22]} 18. Nxe2 {[%emt 0:00:04]} Nd4 {[%emt 0:00:07]} 19. exf5 {[%emt 0:02:31]} gxf5 {[%emt 0:00:15]} 20. Rbe1 {[%emt 0:01:55]} b6 {[%emt 0:02:11]} 21. Bf2 {[%emt 0:03:28]} Nxe2 {[%emt 0:01:58]} 22. Rxe2 {[%emt 0:02:29]} e5 {[%emt 0:00:20]} 23. Bd5+ {[%emt 0:00:56]} Kh8 {[%emt 0:00:11]} 24. Rfe1 {[%emt 0:04:43]} Qc7 {[%emt 0:01:30]} 25. Be3 {[%emt 0:02:19]} Rfe8 {[%emt 0:13:20]} 26. fxe5 {[%emt 0:02:17]} dxe5 {[%emt 0:00:01]} 27. Bh6 {[%emt 0:01:35]} Bf6 {[%emt 0:00:07]} 28. Rf1 {[%emt 0:09:43]} Qd6 {[%emt 0:01:55]} 29. Ref2 {[%emt 0:02:19]} Re7 {[%emt 0:09:45]} 30. Be4 {[%emt 0:05:29]} Bg7 {[%emt 0:00:25]} 31. Bxg7+ {[%emt 0:06:22]} Rxg7 {[%emt 0:01:09]} 32. Bxf5 {[%emt 0:00:17]} e4 {[%emt 0:02:05]} 33. Qf4 {[%emt 0:01:45]} Qxf4 {[%emt 0:02:02]} 34. Rxf4 {[%emt 0:00:04]} Bxf5 {[%emt 0:00:15]} 35. Rxf5 {[%emt 0:00:03]} exd3 {[%emt 0:00:06]} 36. Rd5 {[%emt 0:02:26]} Re8 {[%emt 0:00:29]} 37. Rxd3 {[%emt 0:01:10]} Re2+ {[%emt 0:00:07]} 38. Kg1 {[%emt 0:00:26]} Rc2 {[%emt 0:00:18]} 39. Rf4 {[%emt 0:08:59]} Re7 {[%emt 0:00:27]} 40. Kf1 {[%emt 0:00:19]} Kg7 {[%emt 0:01:31]} 41. Rd6 {[%emt 0:02:40]} Ree2 {[%emt 0:03:51]} 42. Rd7+ {[%emt 0:00:57]} Kg6 {[%emt 0:00:29]} 43. Rd6+ {[%emt 0:00:05]} Kg7 {[%emt 0:00:04]} 44. Rd7+ {[%emt 0:01:48]} Kg6 {[%emt 0:00:13]} 1/2-1/2

[Event "1st Bangalore GM-Open-A 2024"]
[Site "Bangalore"]
[Date "2024.01.21"]
[Round "6.33"]
[White "Dhananjay S"]
[Black "Liyanage, Ranindu Dilshan"]
[Result "1/2-1/2"]
[ECO "B30"]
[WhiteElo "2151"]
[BlackElo "2366"]
[Annotator "RC"]
[PlyCount "96"]
[EventDate "2024.01.20"]
[EventType "swiss"]
[EventCountry "IND"]
[SourceTitle "playchess.com"]
[Source "ChessBase"]
[SourceQuality "1"]
[TimeControl "5400+30"]

1. e4 {[%emt 0:04:14]} c5 {[%emt 0:00:42]} 2. Nf3 {[%emt 0:01:35]} Nc6 {[%emt 0:00:17]} 3. Bb5 {[%emt 0:00:04]} Nf6 {[%emt 0:00:54]} 4. Bxc6 {[%emt 0:01:05]} dxc6 {[%emt 0:00:40]} 5. d3 {[%emt 0:00:29]} Qc7 {[%emt 0:00:35]} 6. e5 {[%emt 0:02:07]} Nd5 {[%emt 0:11:50]} 7. h3 {[%emt 0:00:23]} g6 {[%emt 0:02:03]} 8. Qe2 {[%emt 0:00:26]} Bg7 {[%emt 0:00:53]} 9. O-O {[%emt 0:01:41]} O-O {[%emt 0:05:44]} 10. c4 {[%emt 0:01:40]} Nb6 {[%emt 0:07:28]} 11. Bf4 {[%emt 0:01:32]} h6 {[%emt 0:01:05]} 12. Nc3 {[%emt 0:00:45]} Be6 {[%emt 0:03:12]} 13. Rad1 {[%emt 0:02:33]} Rfd8 {[%emt 0:04:57]} 14. Qe3 {[%emt 0:01:22]} Nd7 {[%emt 0:02:17]} 15. Ne4 {[%emt 0:05:56]} b6 {[%emt 0:02:48]} 16. Nf6+ {[%emt 0:04:28]} Kh8 {[%emt 0:05:06]} 17. Nxd7 {[%emt 0:00:05]} g5 {[%emt 0:00:49]} 18. Nxc5 {[%emt 0:01:57]} bxc5 {[%emt 0:00:07]} 19. Bg3 {[%emt 0:02:12]} Qa5 {[%emt 0:00:45]} 20. Rd2 {[%emt 0:03:41]} Bf5 {[%emt 0:05:46]} 21. b3 {[%emt 0:01:38]} e6 {[%emt 0:02:10]} 22. Rfd1 {[%emt 0:01:17]} Rd7 {[%emt 0:00:42]} 23. d4 {[%emt 0:06:58]} cxd4 {[%emt 0:02:11]} 24. Nxd4 {[%emt 0:06:23]} Rad8 {[%emt 0:01:50]} 25. Nf3 {[%emt 0:02:26]} Rxd2 {[%emt 0:01:50]} 26. Rxd2 {[%emt 0:00:01]} Rxd2 {[%emt 0:00:26]} 27. Qxd2 {[%emt 0:00:04]} Qxd2 {[%emt 0:00:06]} 28. Nxd2 {[%emt 0:00:03]} Bf8 {[%emt 0:00:07]} 29. f3 {[%emt 0:02:25]} Bd3 {[%emt 0:04:31]} 30. Ne4 {[%emt 0:05:41]} Bb4 {[%emt 0:01:42]} 31. Bf2 {[%emt 0:13:17]} a6 {[%emt 0:02:46]} 32. Bd4 {[%emt 0:12:07]} Bb1 {[%emt 0:01:52]} 33. Kf2 {[%emt 0:00:13]} Bxa2 {[%emt 0:05:12]} 34. Bc5 {[%emt 0:00:07]} Ba5 {[%emt 0:00:13]} 35. b4 {[%emt 0:01:01]} Bc7 {[%emt 0:01:02]} 36. Nd6 {[%emt 0:00:44]} Kg8 {[%emt 0:00:56]} 37. Ke3 {[%emt 0:00:22]} f6 {[%emt 0:01:02]} 38. exf6 {[%emt 0:06:41]} Bxd6 {[%emt 0:00:11]} 39. Bxd6 {[%emt 0:00:05]} Bxc4 {[%emt 0:00:06]} 40. f4 {[%emt 0:02:12]} gxf4+ {[%emt 0:04:09]} 41. Bxf4 {[%emt 0:02:28]} h5 {[%emt 0:01:09]} 42. g4 {[%emt 0:00:58]} hxg4 {[%emt 0:01:17]} 43. hxg4 {[%emt 0:00:04]} Kf7 {[%emt 0:00:07]} 44. g5 {[%emt 0:00:10]} Bb5 {[%emt 0:00:54]} 45. Kd4 {[%emt 0:00:05]} Bf1 {[%emt 0:00:27]} 46. Kc5 {[%emt 0:00:05]} Bb5 {[%emt 0:00:43]} 47. Be5 {[%emt 0:00:04]} Bf1 {[%emt 0:01:03]} 48. Kd6 {[%emt 0:00:15]} Bd3 {[%emt 0:00:12]} 1/2-1/2

[Event "1st Bangalore GM-Open-A 2024"]
[Site "Bangalore"]
[Date "2024.01.21"]
[Round "6.34"]
[White "Nguyen Van Huy"]
[Black "Sarwat, Walaa"]
[Result "1-0"]
[ECO "D29"]
[WhiteElo "2364"]
[BlackElo "2175"]
[Annotator "ChessBase"]
[PlyCount "111"]
[EventDate "2024.01.20"]
[EventType "swiss"]
[EventCountry "IND"]
[SourceTitle "playchess.com"]
[Source "ChessBase"]
[SourceQuality "1"]
[TimeControl "5400+30"]

1. d4 {[%emt 0:00:34]} d5 {[%emt 0:00:08]} 2. Nf3 {[%emt 0:00:06]} Nf6 {[%emt 0:00:07]} 3. c4 {[%emt 0:00:13]} dxc4 {[%emt 0:00:41]} 4. e3 {[%emt 0:00:42]} c5 {[%emt 0:00:39]} 5. Bxc4 {[%emt 0:01:30]} e6 {[%emt 0:00:13]} 6. O-O {[%emt 0:01:25]} a6 {[%emt 0:00:13]} 7. Qe2 {[%emt 0:04:57]} b5 {[%emt 0:01:30]} 8. Bb3 {[%emt 0:01:13]} Bb7 {[%emt 0:04:21]} 9. a4 {[%emt 0:05:52]} b4 {[%emt 0:03:56]} 10. Rd1 {[%emt 0:10:29]} Nbd7 {[%emt 0:00:45]} 11. Nbd2 {[%emt 0:02:48]} Be7 {[%emt 0:01:10]} 12. Nc4 {[%emt 0:11:29]} O-O {[%emt 0:07:36]} 13. a5 {[%emt 0:02:37]} Qc7 {[%emt 0:02:16]} 14. Bd2 {[%emt 0:00:55]} Rac8 {[%emt 0:02:19]} 15. Rac1 {[%emt 0:04:40]} Bd5 {[%emt 0:06:02]} 16. dxc5 {[%emt 0:08:18]} Nxc5 {[%emt 0:02:08]} 17. Bc2 {[%emt 0:01:22]} b3 {[%emt 0:03:35]} 18. Bb1 {[%emt 0:01:24]} Rcd8 {[%emt 0:03:09]} 19. Be1 {[%emt 0:02:04]} Qb7 {[%emt 0:01:04]} 20. Nb6 {[%emt 0:00:46]} Bc6 {[%emt 0:01:44]} 21. Rxd8 {[%emt 0:02:16]} Rxd8 {[%emt 0:03:44]} 22. Bb4 {[%emt 0:00:19]} Bb5 {[%emt 0:01:14]} 23. Qe1 {[%emt 0:02:26]} Na4 {[%emt 0:23:53]} 24. Bxe7 {[%emt 0:02:34]} Qxe7 {[%emt 0:00:13]} 25. Nxa4 {[%emt 0:00:36]} Bxa4 {[%emt 0:00:07]} 26. h3 {[%emt 0:01:31]} g6 {[%emt 0:01:58]} 27. Rd1 {[%emt 0:02:19]} Qc7 {[%emt 0:03:24]} 28. Bd3 {[%emt 0:04:26]} Rd5 {[%emt 0:02:36]} 29. Bxa6 {[%emt 0:00:50]} Rxd1 {[%emt 0:00:58]} 30. Qxd1 {[%emt 0:00:04]} Qxa5 {[%emt 0:00:13]} 31. Bc4 {[%emt 0:03:12]} Qb4 {[%emt 0:00:35]} 32. Qd8+ {[%emt 0:02:37]} Kg7 {[%emt 0:00:45]} 33. Qd4 {[%emt 0:00:15]} Bb5 {[%emt 0:01:49]} 34. Bxe6 {[%emt 0:03:37]} Qxd4 {[%emt 0:02:25]} 35. Nxd4 {[%emt 0:00:27]} fxe6 {[%emt 0:00:18]} 36. Nxb5 {[%emt 0:00:02]} e5 {[%emt 0:00:25]} 37. Kf1 {[%emt 0:02:58]} Kf7 {[%emt 0:02:45]} 38. Ke2 {[%emt 0:00:13]} Ne4 {[%emt 0:01:51]} 39. f3 {[%emt 0:03:32]} Nc5 {[%emt 0:00:08]} 40. Nc3 {[%emt 0:01:31]} Ke6 {[%emt 0:00:45]} 41. Kd2 {[%emt 0:00:20]} h5 {[%emt 0:01:12]} 42. h4 {[%emt 0:00:19]} Kf5 {[%emt 0:01:10]} 43. e4+ {[%emt 0:00:44]} Ke6 {[%emt 0:00:48]} 44. Nd1 {[%emt 0:00:12]} Kf6 {[%emt 0:06:00]} 45. Kc3 {[%emt 0:02:28]} g5 {[%emt 0:00:09]} 46. Kc4 {[%emt 0:00:54]} Ne6 {[%emt 0:00:10]} 47. hxg5+ {[%emt 0:03:36]} Kxg5 {[%emt 0:01:59]} 48. g3 {[%emt 0:00:33]} Nd4 {[%emt 0:04:56]} 49. Nf2 {[%emt 0:01:14]} Nxf3 {[%emt 0:01:49]} 50. Kxb3 {[%emt 0:00:22]} h4 {[%emt 0:00:48]} 51. gxh4+ {[%emt 0:00:16]} Kxh4 {[%emt 0:00:44]} 52. Kc4 {[%emt 0:00:40]} Kg3 {[%emt 0:02:26]} 53. Nd3 {[%emt 0:00:27]} Nd2+ {[%emt 0:00:29]} 54. Kd5 {[%emt 0:00:08]} Kf3 {[%emt 0:00:24]} 55. Nxe5+ {[%emt 0:00:29]} Kf4 {[%emt 0:00:15]} 56. Nd3+ {[%emt 0:00:07]} 1-0

[Event "1st Bangalore GM-Open-A 2024"]
[Site "Bangalore"]
[Date "2024.01.21"]
[Round "6.35"]
[White "Vrashank Chouhan"]
[Black "Dushyant Sharma"]
[Result "0-1"]
[ECO "D02"]
[WhiteElo "2046"]
[BlackElo "2357"]
[Annotator "RC"]
[PlyCount "74"]
[EventDate "2024.01.20"]
[EventType "swiss"]
[EventCountry "IND"]
[SourceTitle "playchess.com"]
[Source "ChessBase"]
[SourceQuality "1"]
[TimeControl "5400+30"]

1. d4 {[%emt 0:03:12]} d5 {[%emt 0:00:07]} 2. Bf4 {[%emt 0:00:11]} Nf6 {[%emt 0:01:38]} 3. e3 {[%emt 0:00:06]} c5 {[%emt 0:00:11]} 4. Nf3 {[%emt 0:00:07]} Nc6 {[%emt 0:00:28]} 5. Nbd2 {[%emt 0:00:07]} Bg4 {[%emt 0:00:34]} 6. c3 {[%emt 0:00:51]} e6 {[%emt 0:00:10]} 7. Qb3 {[%emt 0:00:11]} Qc8 {[%emt 0:00:06]} 8. h3 {[%emt 0:00:14]} Bh5 {[%emt 0:00:05]} 9. Nh4 {[%emt 0:00:18]} cxd4 {[%emt 0:00:46]} 10. exd4 {[%emt 0:00:07]} Qd7 {[%emt 0:00:06]} 11. Bd3 {[%emt 0:00:45]} Bd6 {[%emt 0:00:07]} 12. Bxd6 {[%emt 0:00:37]} Qxd6 {[%emt 0:00:02]} 13. O-O {[%emt 0:00:11]} O-O {[%emt 0:00:04]} 14. Nhf3 {[%emt 0:00:07]} Rab8 {[%emt 0:04:57]} 15. a4 {[%emt 0:00:08]} a6 {[%emt 0:01:22]} 16. a5 {[%emt 0:01:32]} Qc7 {[%emt 0:08:03]} 17. Qa3 {[%emt 0:02:46]} Rfe8 {[%emt 0:05:14]} 18. Rfe1 {[%emt 0:00:42]} Nd7 {[%emt 0:01:17]} 19. Bf1 {[%emt 0:07:57]} f6 {[%emt 0:13:51]} 20. Re3 {[%emt 0:15:42]} e5 {[%emt 0:12:58]} 21. dxe5 {[%emt 0:06:04]} fxe5 {[%emt 0:00:53]} 22. Qa2 {[%emt 0:11:24]} Nf6 {[%emt 0:01:00]} 23. Ne4 {[%emt 0:08:39]} Rbd8 {[%emt 0:06:55]} 24. Nc5 {[%emt 0:03:49]} Kh8 {[%emt 0:02:20]} 25. Nd2 {[%emt 0:06:07]} d4 {[%emt 0:14:32]} 26. Ree1 {[%emt 0:03:26]} Bf7 {[%emt 0:10:04]} 27. Ndb3 {[%emt 0:14:09]} e4 {[%emt 0:02:32]} 28. Qa4 {[%emt 0:01:30]} d3 {[%emt 0:05:54]} 29. Nd2 {[%emt 0:01:21]} Bg6 {[%emt 0:00:01]} 30. Rad1 {[%emt 0:05:02]} Nxa5 {[%emt 0:01:01]} 31. b4 {[%emt 0:03:00]} Nc6 {[%emt 0:00:04]} 32. Qb3 {[%emt 0:00:13]} Bf7 {[%emt 0:00:50]} 33. Qb1 {[%emt 0:00:18]} Bh5 {[%emt 0:01:37]} 34. Rc1 {[%emt 0:01:26]} Bg6 {[%emt 0:01:21]} 35. Qb3 {[%emt 0:00:14]} Qf4 {[%emt 0:00:35]} 36. Qa2 {[%emt 0:00:52]} Ne5 {[%emt 0:02:00]} 37. g3 {[%emt 0:00:56]} Qxd2 {[%emt 0:00:06]} 0-1

[Event "1st Bangalore GM-Open-A 2024"]
[Site "Bangalore"]
[Date "2024.01.21"]
[Round "6.36"]
[White "Majumder Shrayan"]
[Black "Manish Anto Cristiano F"]
[Result "1-0"]
[ECO "E23"]
[WhiteElo "1916"]
[BlackElo "2349"]
[Annotator "RC"]
[PlyCount "79"]
[EventDate "2024.01.20"]
[EventType "swiss"]
[EventCountry "IND"]
[SourceTitle "playchess.com"]
[Source "ChessBase"]
[SourceQuality "1"]
[TimeControl "5400+30"]

1. d4 {[%emt 0:00:03]} Nf6 {[%emt 0:02:31]} 2. c4 {[%emt 0:00:55]} e6 {[%emt 0:00:09]} 3. Nc3 {[%emt 0:00:09]} Bb4 {[%emt 0:00:43]} 4. Qb3 {[%emt 0:01:58]} c5 {[%emt 0:01:36]} 5. dxc5 {[%emt 0:00:08]} Nc6 {[%emt 0:01:59]} 6. Nf3 {[%emt 0:00:09]} O-O {[%emt 0:01:09]} 7. Bg5 {[%emt 0:07:26]} h6 {[%emt 0:02:42]} 8. Bh4 {[%emt 0:01:24]} g5 {[%emt 0:08:48]} 9. Bg3 {[%emt 0:00:07]} Ne4 {[%emt 0:00:18]} 10. Qc2 {[%emt 0:15:15]} f5 {[%emt 0:04:06]} 11. e3 {[%emt 0:04:20]} Qf6 {[%emt 0:11:18]} 12. Rc1 {[%emt 0:03:48]} Nxc3 {[%emt 0:00:55]} 13. bxc3 {[%emt 0:00:07]} Bxc5 {[%emt 0:00:06]} 14. h4 {[%emt 0:07:33]} g4 {[%emt 0:01:10]} 15. Nd2 {[%emt 0:00:07]} e5 {[%emt 0:02:03]} 16. h5 {[%emt 0:02:38]} d6 {[%emt 0:04:06]} 17. Nb3 {[%emt 0:01:42]} Ba3 {[%emt 0:05:44]} 18. Rd1 {[%emt 0:01:28]} Be6 {[%emt 0:00:29]} 19. Be2 {[%emt 0:02:35]} Qf7 {[%emt 0:02:40]} 20. f3 {[%emt 0:05:28]} gxf3 {[%emt 0:03:42]} 21. gxf3 {[%emt 0:00:28]} Kh8 {[%emt 0:05:49]} 22. c5 {[%emt 0:03:29]} dxc5 {[%emt 0:03:32]} 23. Nd2 {[%emt 0:02:15]} Rg8 {[%emt 0:13:46]} 24. Bf2 {[%emt 0:01:05]} c4 {[%emt 0:01:33]} 25. Qa4 {[%emt 0:00:34]} Bc5 {[%emt 0:02:00]} 26. Bxc4 {[%emt 0:02:44]} a6 {[%emt 0:04:02]} 27. Bxe6 {[%emt 0:03:01]} Qxe6 {[%emt 0:00:05]} 28. Qc4 {[%emt 0:00:13]} Qe7 {[%emt 0:00:57]} 29. Nb3 {[%emt 0:03:42]} Ba7 {[%emt 0:00:31]} 30. Bh4 {[%emt 0:02:09]} Qg7 {[%emt 0:09:42]} 31. Rd6 {[%emt 0:08:51]} Raf8 {[%emt 0:03:17]} 32. Qe6 {[%emt 0:13:35]} Nd8 {[%emt 0:02:00]} 33. Rxd8 {[%emt 0:01:46]} Bxe3 {[%emt 0:01:57]} 34. Rd7 {[%emt 0:00:46]} Qg2 {[%emt 0:01:32]} 35. Bf6+ {[%emt 0:00:18]} Rxf6 {[%emt 0:00:20]} 36. Qxf6+ {[%emt 0:00:06]} Rg7 {[%emt 0:00:06]} 37. Qxg7+ {[%emt 0:00:14]} Qxg7 {[%emt 0:00:06]} 38. Rxg7 {[%emt 0:00:05]} Kxg7 {[%emt 0:00:08]} 39. Ke2 {[%emt 0:00:05]} Bb6 {[%emt 0:00:12]} 40. Rd1 {[%emt 0:00:08]} 1-0

[Event "1st Bangalore GM-Open-A 2024"]
[Site "Bangalore"]
[Date "2024.01.21"]
[Round "6.37"]
[White "Laxman, R.R."]
[Black "Aquino, Jethro Dino"]
[Result "1/2-1/2"]
[ECO "D73"]
[WhiteElo "2338"]
[BlackElo "2166"]
[Annotator "RC"]
[PlyCount "91"]
[EventDate "2024.01.20"]
[EventType "swiss"]
[EventCountry "IND"]
[SourceTitle "playchess.com"]
[Source "ChessBase"]
[SourceQuality "1"]
[TimeControl "5400+30"]

1. d4 {[%emt 0:02:22]} Nf6 {[%emt 0:00:14]} 2. c4 {[%emt 0:00:16]} g6 {[%emt 0:00:35]} 3. Nf3 {[%emt 0:00:24]} Bg7 {[%emt 0:00:13]} 4. g3 {[%emt 0:00:27]} c6 {[%emt 0:01:06]} 5. Bg2 {[%emt 0:00:09]} d5 {[%emt 0:00:21]} 6. Qb3 {[%emt 0:02:50]} O-O {[%emt 0:00:34]} 7. Nc3 {[%emt 0:00:51]} a5 {[%emt 0:01:16]} 8. cxd5 {[%emt 0:00:38]} cxd5 {[%emt 0:00:13]} 9. O-O {[%emt 0:00:15]} Nc6 {[%emt 0:03:14]} 10. Bf4 {[%emt 0:00:07]} Ne4 {[%emt 0:01:22]} 11. Rfd1 {[%emt 0:00:42]} Nxc3 {[%emt 0:00:49]} 12. bxc3 {[%emt 0:00:23]} a4 {[%emt 0:00:56]} 13. Qb5 {[%emt 0:02:02]} Qa5 {[%emt 0:08:12]} 14. Qxa5 {[%emt 0:00:10]} Nxa5 {[%emt 0:00:14]} 15. Rab1 {[%emt 0:00:34]} Bf5 {[%emt 0:05:45]} 16. Rb5 {[%emt 0:01:27]} Rfc8 {[%emt 0:00:45]} 17. Rxd5 {[%emt 0:00:00]} Be6 {[%emt 0:01:49]} 18. Rb5 {[%emt 0:00:00]} Bxa2 {[%emt 0:01:45]} 19. Ne5 {[%emt 0:00:59]} Bxe5 {[%emt 0:08:37]} 20. Rxe5 {[%emt 0:03:26]} Bc4 {[%emt 0:09:37]} 21. Rxe7 {[%emt 0:00:57]} a3 {[%emt 0:01:37]} 22. Bh3 {[%emt 0:05:24]} Re8 {[%emt 0:04:05]} 23. Rxe8+ {[%emt 0:00:39]} Rxe8 {[%emt 0:00:01]} 24. e4 {[%emt 0:00:01]} Nb3 {[%emt 0:05:47]} 25. d5 {[%emt 0:00:19]} a2 {[%emt 0:00:38]} 26. d6 {[%emt 0:01:35]} Bb5 {[%emt 0:00:42]} 27. c4 {[%emt 0:02:33]} Bc6 {[%emt 0:04:56]} 28. d7 {[%emt 0:02:22]} Bxd7 {[%emt 0:00:06]} 29. Bxd7 {[%emt 0:00:02]} Rxe4 {[%emt 0:00:10]} 30. Bc8 {[%emt 0:00:59]} a1=Q {[%emt 0:06:03]} 31. Rxa1 {[%emt 0:00:01]} Nxa1 {[%emt 0:00:01]} 32. Bxb7 {[%emt 0:00:10]} Rxc4 {[%emt 0:00:04]} 33. Bd5 {[%emt 0:00:22]} Rd4 {[%emt 0:02:00]} 34. Bf3 {[%emt 0:00:08]} Nc2 {[%emt 0:01:01]} 35. h4 {[%emt 0:00:07]} f6 {[%emt 0:01:25]} 36. Be2 {[%emt 0:00:13]} Kg7 {[%emt 0:00:57]} 37. Kg2 {[%emt 0:00:05]} h6 {[%emt 0:02:02]} 38. Kf1 {[%emt 0:00:20]} g5 {[%emt 0:01:43]} 39. hxg5 {[%emt 0:00:02]} hxg5 {[%emt 0:00:05]} 40. Bc7 {[%emt 0:00:08]} Rd7 {[%emt 0:00:38]} 41. Bb6 {[%emt 0:00:52]} f5 {[%emt 0:00:23]} 42. Ba5 {[%emt 0:00:20]} Kg6 {[%emt 0:00:51]} 43. Bb5 {[%emt 0:00:10]} Re7 {[%emt 0:00:53]} 44. Bd3 {[%emt 0:00:39]} Re5 {[%emt 0:02:59]} 45. Bxc2 {[%emt 0:01:23]} Rxa5 {[%emt 0:00:01]} 46. g4 {[%emt 0:01:50]} 1/2-1/2